{"text_format":"1","workbook":"xlsx","n_sheets":3,"sheets":["List1","List2","List3"],"not_rendered":{"charts":0,"images":0,"macros":0,"external_links":1,"defined_names":0,"comments":0,"pivot_tables":0},"unopened":[],"bounds":{"document_bytes":16777216,"sheet_cells":100000,"rows_first":2000,"rows_last":500,"rows_between":2000,"halvings":0,"cell_chars":16384,"cell_head_chars":4096},"cells_cut":0,"cells_raw":0,"read":"whole","date_system":"1900"}

{"sheet":"List1","index":0,"n_rows":69,"n_cols":10,"rows_kept":69,"cut":false,"hidden":false,"merged":[]}
[]
[]
["Obec , IČ: Náklo, 00299251"]
[]
["Rozpočtové opatření č. 12 - ŘÍJEN 2022 "]
[]
["V souladu s ustanovením § 16 zákona č. 250/2000 Sb., o rozpočtových pravidlech územních rozpočtů dojde k rozpočtovému"]
["opatření v případě změn rozpočtových prostředků na závazných ukazatelích."]
[]
["Rozpočtové opatření č. 12/2022 (předloženo na Radě obce 31. 10. 2022) a doplněno při jednání na zasedání Rady obce"]
[]
["PŘÍJMY"]
["PAR","POL","UZ","PARAGRAF","popis","Rozpočet na rok 2022","Rozpočet po změnách","změna ROZP","ROZP po ZMĚNĚ","POZNÁMKA"]
[null,null,null,"Celkem ZMĚNY v PŘÍJMECH",null,33700619.700000003,35858640.730000004,null,{"$f":"H14+G14","v":35858640.730000004}]
[]
[null,null,null,"Celkem PŘÍJMY",null,{"$f":"F14","v":33700619.700000003},{"$f":"G14","v":35858640.730000004},{"$f":"H14","v":0},{"$f":"G16+H16","v":35858640.730000004}]
[]
["VÝDAJE:"]
["PAR","POL","UZ","PARAGRAF","popis","Rozpočet na rok 2022","Rozpočet po změnách","změna ROZP","ROZP po ZMĚNĚ","POZNÁMKA"]
[3612,5151,null,null,"Studená voda",5000,32477.55,26000,{"$f":"H20+G20","v":58477.55},"studená voda byty"]
[3612,null,null,"Bytové hospodářství",null,210000,2937048.39,{"$f":"H20","v":26000},2963048.39]
[3613,5171,null,null,"opravy a udržování",20000,20000,4000,{"$f":"H22+G22","v":24000},"oprava N12 - střecha"]
[3613,null,null,"Nebytové hospodářství",null,51000,115798.62,{"$f":"H22","v":4000},119798.62]
[3631,5169,null,null,"nákup ostatních služeb",10000,83821.460000000006,33529.129999999997,{"$f":"H24+G24","v":117350.59},"nájemní smlouva ČEZ"]
[3631,5171,null,null,"opravy a udržování",50000,50000,42000,{"$f":"H25+G25","v":92000},"výměna lamp ČEZ"]
[3631,null,null,"Veřejné osvětlení",null,300000,447695.14,{"$f":"SUM(H24:H25)","v":75529.13},523224.27]
[3632,5169,null,null,"elektrická energie",6500,15750,5760.37,{"$f":"H27+G27","v":21510.37},"elektrická energie hřbitov"]
[3632,null,null,"Pohřebnictví",null,300000,447695.14,{"$f":"SUM(H27:H27)","v":5760.37},{"$f":"H28+G28","v":453455.51}]
[3725,5169,null,null,"nákup ostatních služeb",300000,380000,30000,{"$f":"H29+G29","v":410000},"komunální odpad"]
[3725,null,null,"Využívání a zneškodňování komunálního odpadu",null,423000,503000,{"$f":"SUM(H29:H29)","v":30000},{"$f":"H30+G30","v":533000}]
[6171,5151,null,null,"Studená voda",6000,8580,1430,{"$f":"H31+G31","v":10010},"studená voda OÚ"]
[6171,5137,null,null,"Drobný dlouhodobý hmotný dlouhodobý",30000,108871,100000,{"$f":"H32+G32","v":208871},"notebook, mobilní telefon"]
[6171,5162,null,null,"Služby elektronických komunikací",80000,80000,20000,{"$f":"H33++G33","v":100000},"telefonní poplatky"]
[6171,5321,null,null,"Neinvestiční transfery obcím",60000,75000,{"$f":"25000+8242","v":33242},{"$f":"H34+G34","v":108242},"Městská policie Štěpánov"]
[6171,6121,null,null,"Stavby",0,2000000,{"$f":"-175529.13-30000-21430-33242-5760.37-30000","v":-295961.5},{"$f":"H35+G35","v":1704038.5}]
[6171,null,null,"Činnost místní správy",null,5427999,9934378.3100000005,{"$f":"SUM(H31:H35)","v":-141289.5},{"$f":"H36+G36","v":9793088.8100000005}]
[null,null,null,"Celkem ZMĚNY ve VÝDAJÍCH",null,30616619.699999999,41730236.509999998,{"$f":"+H36+H26+H23+H21+H28+H30","v":0},{"$f":"H37+G37","v":41730236.509999998}]
[]
[null,null,null,"Celkem VÝDAJE",null,41730236.509999998,0,{"$f":"F39","v":41730236.509999998}]
[]
[null,null,null,"Celkem 5XXX",null,26880442.949999999,519277,27399719.949999999]
[null,null,null,"Celkem 6XXX",null,12687107.249999998,1488726.17,14175833.419999998]
[]
[]
["FINANCOVÁNÍ"]
["PAR","POL","UZ","PARAGRAF","popis","Rozpočet na rok 2022","Rozpočet po změnách","změna ROZP","ROZP po ZMĚNĚ","POZNÁMKA"]
[]
[]
[null,null,null,"Celkem ZMĚNY ve FINANCOVÁNÍ:",null,null,null,null,{"$f":"I47","v":0}]
[]
[]
[null,null,null,"REKAPITULACE:"]
[]
[null,null,null,"Celkem PŘÍJMY",null,38021327.039999999,0,{"$f":"F54","v":38021327.039999999}]
[null,null,null,"Celkem FINANCOVÁNÍ:",null,3708909.4700000063,0,{"$f":"F55","v":3708909.4700000063}]
[null,null,null,"Celkem PŘÍJMY+FINANCOVÁNÍ",null,{"$f":"F55+F54","v":41730236.510000005},0,41730236.510000005]
[]
[null,null,null,"Celkem VÝDAJE",null,{"$f":"F56","v":41730236.510000005},0,41730236.510000005]
[]
[]
["Důvodová zpráva k rozpočtovému opatření č. 12/2022"]
[]
["Přesun prostředků v rámci nezajištěného výdaje je Čerpán z rezervy obce."]
[]
["Správce rozpočtu : "]
[]
["Starosta obce : "]
[]
["Rada obce schvaluje dne 31. 10. 2022 rozpočtové opatření č. 12/2022 v předloženém rozsahu."]

{"sheet":"List2","index":1,"n_rows":24,"n_cols":1,"rows_kept":24,"cut":false,"hidden":false,"merged":[]}
["TEXTY PRO FORMULÁŘ ÚPRAVA ROZPOČTU - na začátek kopírují se řádky 3-13"]
["poznámka: Texty, které budou přenášeny z tohoto formuláře, musí být zapsány pouze ve sloupci A"]
[]
[]
["Obec , IČ: Náklo, 00299251"]
[]
["Rozpočtové změny roku 2019 -duben"]
[]
["V souladu s ustanovením § 16 zákona č. 250/2000 Sb., o rozpočtových pravidlech územních rozpočtů dojde k rozpočtovému"]
["opatření v případě změn rozpočtových prostředků na závazných ukazatelích."]
[]
["Rozpočtové opatření č. 1/2019 (předloženo na ZQ 6. 6. 2018) a doplněno při jednání na ZO"]
[]
["TEXTY PRO FORMULÁŘ ÚPRAVA ROZPOČTU - na začátek kopírují se řádky 16-32"]
[]
["Důvodová zpráva k rozpočtovému opatření č. 1/2019"]
[]
["Přesun prostředků v rámci nezajištěného výdaje je Čerpán z rezervy obce."]
[]
["Správce rozpočtu : "]
[]
["Starosta obce : "]
[]
["ZO schvaluje dne 6. 6. 2018 rozpočtové opatření č. 3/2018 v předloženém rozsahu Usnesením č. 1038/1860"]

{"sheet":"List3","index":2,"n_rows":0,"n_cols":0,"rows_kept":0,"cut":false,"hidden":false,"merged":[]}